[Event "Nakhchivan Open 2022"]
[Site "Nakhchivan"]
[Date "2022.05.11"]
[Round "5.5"]
[White "Huseynova, Lala"]
[Black "Rasulov, Vugar"]
[Result "0-1"]
[ECO "B03"]
[WhiteElo "1666"]
[BlackElo "2445"]
[Annotator "TA"]
[PlyCount "118"]
[EventDate "2022.05.08"]
[EventType "swiss"]
[EventCountry "AZE"]
[SourceTitle "playchess.com"]
[Source "ChessBase"]
[SourceQuality "1"]
[TimeControl "5400+30"]

{[%evp 28,118,-52,-56,-50,-100,-101,-95,-91,-69,-51,-51,-49,-56,-49,-57,-52,-47,-8,-93,-75,-148,-148,-148,-149,-124,-104,-112,-84,-97,-65,-158,-158,-192,-193,-198,-198,-198,-198,-196,-198,-198,-198,-193,-193,-192,-191,-192,-196,-188,-193,-179,-181,-272,-267,-293,-289,-1164,-2037,-1832,-1681,-2245,-1541,-3319,-2545,-6083,-5718,-6099,-2216,-1959,-1591,-1429,-1249,-29968,-29965,-29955,-6191,-29973,-29974,-29966,-29965,-29975,-29976,-29976,-29977,-29977,-29978,-29989,-29990,-29990,-29991,-29991,-29991]} 1. e4 {[%emt 0:01:07][%cal Be2e4,Be4e5][%mdl 32]} Nf6 {[%emt 0:00:27]} 2. e5 {[%emt 0:01:05]} Nd5 {[%emt 0:00:08]} 3. d4 {[%emt 0:00:17]} d6 {[%emt 0:00:09]} 4. c4 {[%emt 0:00:36]} Nb6 {[%emt 0:00:07]} 5. exd6 {[%emt 0:00:40]} cxd6 {[%emt 0:00:08]} 6. Nf3 {[%emt 0:01:05]} g6 {[%emt 0:00:11]} 7. Nc3 {[%emt 0:01:23]} Bg7 {[%emt 0:00:10]} 8. Be3 {[%emt 0:01:16]} O-O {[%emt 0:00:13]} 9. Be2 {[%emt 0:00:46]} Nc6 {[%emt 0:00:58]} 10. O-O {[%emt 0:02:13]} Bg4 {[%emt 0:00:09]} 11. b3 {[%emt 0:00:55]} d5 {[%emt 0:00:10]} 12. c5 {[%emt 0:02:14]} Nc8 {[%emt 0:04:06][%cal Bb6c8,Bc8e7,Be7f5,Bf5e3][%mdl 32]} 13. Rc1 {[%emt 0:31:40]} e6 {[%emt 0:00:30]} 14. h3 {[%emt 0:00:30]} Bxf3 {[%emt 0:00:30]} 15. Bxf3 {[%emt 0:00:30]} N8e7 {[%emt 0:00:30] B04: Alekhine's Defence: 4 Nf3.} 16. Nb5 {[%emt 0:00:30]} ({Better is} 16. g4 $15) 16... Nf5 $17 {[%emt 0:00:30]} 17. Bg4 {[%emt 0:00:30]} Nxe3 {[%emt 0:00:30] Black is better.} 18. fxe3 {[%emt 0:00:30] [#]} e5 $146 {[%emt 0:00:30]} ({Predecessor:} 18... Qg5 19. Qe2 Rad8 20. Nd6 Rd7 21. Rce1 a6 22. a3 h5 23. Bf3 Ra8 24. b4 Bf8 {0-1 (61) Buto,A (1474)-Daluz,C (1950) Batangas 2019}) 19. dxe5 {[%emt 0:00:30]} ({Don't play} 19. Nd6 h5 20. Bf3 (20. Nxb7 Qg5 $17) 20... e4 $17) 19... Bxe5 {[%emt 0:00:30]} 20. Bf3 {[%emt 0:00:30]} Qg5 {[%emt 0:00:30]} 21. Qe1 {[%emt 0:03:01]} Rad8 {[%emt 0:27:23] And now ...Bg3 would win.} 22. Rd1 $1 {[%emt 0:20:27]} Ne7 {[%emt 0:00:30][%cal Bc6e7,Be7f5,Bf5d4][%mdl 32]} 23. Nc3 {[%emt 0:00:30]} (23. h4 $11 {keeps the balance.} Qh6 24. Nd4) 23... Bc7 {[%emt 0:00:30] Black is more active.} 24. e4 {[%emt 0:00:30]} (24. b4 $142) 24... Qe5 $36 {[%emt 0:00:30][%mdl 2048] [#] aiming for ...Qh2+. Black is really pushing.} 25. g3 {[%emt 0:00:30][%cal Re4d5]} dxe4 {[%emt 0:00:30]} 26. Nxe4 {[%emt 0:00:30]} Nf5 {[%emt 0:00:30] Strongly threatening ...Rxd1.} 27. Qf2 {[%emt 0:00:30]} Nd4 {[%emt 0:00:30]} 28. b4 {[%emt 0:00:30]} b6 {[%emt 0:00:30]} 29. Rfe1 {[%emt 0:00:30]} (29. Bg2 $15) 29... bxc5 {[%emt 0:05:35]} 30. bxc5 {[%emt 0:00:30]} f5 {[%emt 0:07:41]} 31. Ng5 {[%emt 0:04:27]} Qxg3+ {[%emt 0:00:16]} 32. Qxg3 {[%emt 0:00:24]} Bxg3 {[%emt 0:00:05]} 33. Rf1 {[%emt 0:00:38]} Rfe8 {[%emt 0:04:56] White must now prevent ...Bf4.} ({Not} 33... Bh4 34. Rxd4 Rxd4 35. Ne6 $17) 34. Bb7 {[%emt 0:05:54] [#]} Bf4 $1 {[%emt 0:07:17][%mdl 512]} 35. Nf3 {[%emt 0:01:20]} Nxf3+ {[%emt 0:00:19]} 36. Bxf3 {[%emt 0:00:06]} Be3+ {[%emt 0:00:06]} 37. Kg2 {[%emt 0:00:08]} Bxc5 {[%emt 0:00:05]} 38. Rxd8 {[%emt 0:00:40]} Rxd8 $19 {[%emt 0:00:02][%mdl 4096] Endgame KRB-KRB} 39. Rd1 {[%emt 0:00:07]} Bd4 {[%emt 0:00:26]} 40. h4 {[%emt 0:00:33]} (40. Rc1 {keeps fighting.}) 40... Kg7 {[%emt 0:00:07]} 41. Rb1 {[%emt 0:00:49]} Bb6 {[%emt 0:00:27][%cal Bd4b6,Bb6a5,Ba5e1][%mdl 32]} 42. Rd1 $2 {[%emt 0:00:12]} (42. Be2) 42... Rxd1 {[%emt 0:00:23]} 43. Bxd1 {[%emt 0:00:05] KB-KB} Ba5 {[%emt 0:00:12]} 44. Bb3 {[%emt 0:01:03]} Be1 {[%emt 0:00:33]} 45. Kh3 {[%emt 0:00:10]} Kf6 {[%emt 0:00:05] ...h6 is the strong threat.} 46. Bd1 {[%emt 0:01:06]} h6 {[%emt 0:00:09][%cal Bh7h6,Bh6g5,Bg5g4][%mdl 32]} 47. Be2 {[%emt 0:00:17]} Ke5 {[%emt 0:00:07]} (47... g5 $142 48. hxg5+ hxg5) 48. Bc4 {[%emt 0:00:32]} Kf4 {[%emt 0:00:16] Hoping for ...g5.} 49. Bf7 {[%emt 0:00:06]} g5 {[%emt 0:00:05]} 50. hxg5 {[%emt 0:00:11]} hxg5 {[%emt 0:00:05]} 51. Kg2 {[%emt 0:00:07]} g4 {[%emt 0:00:09] ( -> ...Kg5)} 52. a4 {[%emt 0:00:18]} Ba5 {[%emt 0:00:08] Black mates.} 53. Kf2 {[%emt 0:00:17]} Bb6+ {[%emt 0:00:06]} 54. Kg2 {[%emt 0:00:04]} Kg5 {[%emt 0:00:06]} 55. Bd5 {[%emt 0:00:15]} f4 {[%emt 0:00:07][%cal Bf5f4,Bf4f3][%mdl 32]} 56. Bc6 {[%emt 0:00:11]} f3+ {[%emt 0:00:11]} 57. Kf1 {[%emt 0:00:20]} Kf4 {[%emt 0:00:04]} 58. Bd7 {[%emt 0:00:16]} g3 {[%emt 0:00:09]} 59. Bh3 {[%emt 0:00:03]} a5 {[%emt 0:00:06] Weighted Error Value: White=0.91/Black=0.23 (precise)} 0-1

[Event "Nakhchivan Open 2022"]
[Site "Nakhchivan"]
[Date "2022.05.11"]
[Round "5.6"]
[White "Haznedaroglu, Kivanc"]
[Black "Babayev, Talib"]
[Result "1-0"]
[ECO "E73"]
[WhiteElo "2425"]
[BlackElo "2218"]
[Annotator "TA"]
[PlyCount "55"]
[EventDate "2022.05.08"]
[EventType "swiss"]
[EventCountry "AZE"]
[SourceTitle "playchess.com"]
[Source "ChessBase"]
[SourceQuality "1"]
[TimeControl "5400+30"]

{[%evp 13,55,58,57,42,59,59,66,25,66,73,124,114,117,102,160,154,199,201,233,208,247,238,238,247,239,217,215,214,196,192,211,203,317,256,325,312,297,259,508,499,683,507,671,619]} 1. d4 {[%emt 0:03:00]} Nf6 {[%emt 0:00:05]} 2. c4 {[%emt 0:00:36]} g6 {[%emt 0:00:06]} 3. Nc3 {[%emt 0:00:06]} Bg7 {[%emt 0:00:06]} 4. e4 {[%emt 0:00:06]} d6 {[%emt 0:00:06]} 5. Be2 {[%emt 0:00:04]} O-O {[%emt 0:00:09]} 6. Be3 {[%emt 0:00:06]} e5 {[%emt 0:00:54]} 7. d5 {[%emt 0:00:25]} Na6 {[%emt 0:01:05]} 8. g4 {[%emt 0:00:23] E73: King's Indian: Averbakh Variation without 6...c5.} Nc5 {[%emt 0:01:06]} 9. f3 {[%emt 0:00:08]} h5 {[%emt 0:00:43]} 10. h3 {[%emt 0:05:25][%cal Bh2h3,Bh3h4][%mdl 32] White is slightly better.} Nh7 {[%emt 0:02:33] [#]} 11. h4 $146 {[%emt 0:05:00]} ({Predecessor:} 11. Qd2 hxg4 12. hxg4 Bf6 13. O-O-O Bg5 14. Nh3 Bxe3 15. Qxe3 Bd7 16. Rh2 f6 17. Rdh1 {1-0 (46) Elissalt Cardenas,H (2297)-Ronka,E (2324) Chess.com INT 2021}) 11... a5 {[%emt 0:08:00] Black is on the road to losing.} ({Black should play} 11... hxg4 12. fxg4 b6) 12. gxh5 $16 {[%emt 0:11:48]} gxh5 {[%emt 0:00:56]} 13. Nh3 {[%emt 0:00:24]} Bxh3 {[%emt 0:24:13]} (13... f5 $142) 14. Rxh3 {[%emt 0:00:12]} f5 {[%emt 0:00:07] [#]} 15. exf5 $1 {[%emt 0:02:41]} Rxf5 {[%emt 0:01:10]} 16. Qc2 {[%emt 0:00:35]} Rf7 {[%emt 0:12:19]} 17. O-O-O {[%emt 0:02:32][%cal Ba1d1,Bd1g1,Bg1g6][%mdl 32]} ({Don't do} 17. Qg6 $6 Qd7 18. Rg3 Qf5 19. Qxf5 Rxf5) 17... Qf6 {[%emt 0:03:10]} 18. Rg1 {[%emt 0:01:14] aiming for Ne4.} Kh8 {[%emt 0:00:07]} 19. Rg6 {[%emt 0:06:41] Inhibits Bh6.} Qf5 {[%emt 0:00:24]} 20. Qxf5 {[%emt 0:13:57]} Rxf5 {[%emt 0:00:05]} 21. Kc2 {[%emt 0:01:12]} b6 {[%emt 0:01:46]} 22. Ne4 {[%emt 0:02:16]} Raf8 {[%emt 0:08:42]} (22... Rf7 {was worth a try.} 23. Nxc5 bxc5) 23. Rhg3 {[%emt 0:05:09]} R5f7 {[%emt 0:03:50]} 24. Nxc5 {[%emt 0:10:01]} bxc5 {[%emt 0:00:35]} 25. Bd3 {[%emt 0:00:08]} Bf6 $2 {[%emt 0:05:30] [#]} (25... Rg8 26. a4 Rf6) 26. Rh6 $18 {[%emt 0:01:07] White is clearly winning.} Rg8 {[%emt 0:01:58]} 27. Rxg8+ {[%emt 0:00:10]} Kxg8 {[%emt 0:00:06]} 28. Bxh7+ {[%emt 0:00:06] Weighted Error Value: White=0.11 (very precise) /Black=0.49} 1-0

[Event "Nakhchivan Open 2022"]
[Site "Nakhchivan"]
[Date "2022.05.12"]
[Round "6.1"]
[White "Mammadov, Sadig"]
[Black "Shahaliyev, Ismayil"]
[Result "0-1"]
[ECO "E49"]
[WhiteElo "2265"]
[BlackElo "2386"]
[Annotator "TA"]
[PlyCount "63"]
[EventDate "2022.05.08"]
[EventType "swiss"]
[EventCountry "AZE"]
[SourceTitle "playchess.com"]
[Source "ChessBase"]
[SourceQuality "1"]
[TimeControl "5400+30"]

{[%evp 22,63,-7,-24,-25,-71,-75,-78,-68,-79,-31,-88,-95,-226,-225,-236,-241,-233,-238,-239,-231,-224,-216,-220,-223,-485,-489,-482,-475,-472,-467,-522,-525,-522,-517,-480,-410,-5789,-407,-935,-897,-1540,-1216,-1242]} 1. d4 {[%emt 0:03:43]} Nf6 {[%emt 0:00:08]} 2. c4 {[%emt 0:01:17]} e6 {[%emt 0:00:06]} 3. Nc3 {[%emt 0:00:10]} Bb4 {[%emt 0:00:06]} 4. e3 {[%emt 0:00:06]} O-O {[%emt 0:00:06]} 5. Bd3 {[%emt 0:00:23]} d5 {[%emt 0:00:13]} 6. a3 {[%emt 0:00:15]} Bxc3+ {[%emt 0:00:06]} 7. bxc3 {[%emt 0:00:02]} dxc4 {[%emt 0:00:08]} 8. Bxc4 {[%emt 0:00:12]} c5 {[%emt 0:00:02]} 9. Ne2 {[%emt 0:00:40]} Qc7 {[%emt 0:00:35]} 10. Bd3 {[%emt 0:00:07]} Nc6 {[%emt 0:00:46]} 11. Bb2 {[%emt 0:02:09]} e5 {[%emt 0:01:18][%cal Be6e5,Be5e4][%mdl 32]} 12. O-O {[%emt 0:03:56]} Be6 {[%emt 0:00:58] [#] E49: Nimzo-Indian: Rubinstein: 5 Bd3 d5 6 a3 Bxc3+ 7 bxc3.} 13. f4 $146 {[%emt 0:07:18]} (13. Ng3 $11) ({Predecessor:} 13. Ng3 Rad8 14. Rc1 Rfe8 15. Qe2 {½-½ (15) Neto,H (2604)-Horvath,A (2481) ICCF email 2010}) 13... e4 $17 {[%emt 0:06:33]} 14. Bc2 {[%emt 0:00:07]} Bc4 {[%emt 0:05:10] Black is better.} 15. Re1 {[%emt 0:01:14]} Nd5 {[%emt 0:06:34] 0x0.001ad06e60b4dp-1022s more active pieces. The white rooks are badly placed.} (15... Na5 $17) 16. Ng3 {[%emt 0:01:36]} ({White should try} 16. Bxe4 $15 Nxe3 17. Qd2) 16... f5 {[%emt 0:00:25]} 17. Nxf5 {[%emt 0:15:13] This move loses the game for White.} Rxf5 $19 {[%emt 0:00:49]} 18. Bxe4 {[%emt 0:00:33]} Rf7 {[%emt 0:02:27]} 19. Qc2 {[%emt 0:04:18] [#]} Nf6 {[%emt 0:05:21]} 20. Bf3 {[%emt 0:00:01]} Re8 {[%emt 0:00:23]} 21. g3 {[%emt 0:03:34]} Rfe7 {[%emt 0:05:28]} 22. e4 {[%emt 0:00:42]} Bd5 {[%emt 0:02:58]} 23. dxc5 {[%emt 0:31:56]} (23. exd5 Rxe1+ 24. Rxe1 Rxe1+ 25. Kf2) 23... Bxe4 {[%emt 0:01:15]} 24. Bxe4 {[%emt 0:01:18]} Rxe4 {[%emt 0:00:12]} 25. Rxe4 {[%emt 0:00:31]} Rxe4 {[%emt 0:01:15]} (25... Nxe4 $2 {perishes.} 26. Re1 Nf6 27. Rxe8+ Nxe8 28. Qe2 $19) 26. c4 {[%emt 0:04:50]} Nd4 {[%emt 0:01:38]} 27. Bxd4 {[%emt 0:01:43]} Rxd4 {[%emt 0:02:12]} 28. Qf5 {[%emt 0:00:01]} Qe7 {[%emt 0:02:09] ( -> ...Qe3+)} 29. Rb1 {[%emt 0:08:44]} (29. Qe5 $142 Qd7 30. Re1) 29... Rxc4 {[%emt 0:06:39]} (29... Qe3+ $142 30. Kh1 Rd2) 30. Qc8+ {[%emt 0:00:31]} (30. Qe5 $142 Re4 31. Qxe7 Rxe7 32. Rb4) 30... Ne8 {[%emt 0:00:06] Hoping for ...Rc2.} 31. Qxb7 {[%emt 0:01:31] [#]} Rc1+ $1 {[%emt 0:02:52][%mdl 512]} 32. Rxc1 {[%emt 0:00:41] Weighted Error Value: White=1.14/Black=0.45} 0-1

[Event "Nakhchivan Open 2022"]
[Site "Nakhchivan"]
[Date "2022.05.12"]
[Round "6.2"]
[White "Mahdavi, Reza"]
[Black "Lorparizangeneh, Shahin"]
[Result "0-1"]
[ECO "B52"]
[WhiteElo "2303"]
[BlackElo "2502"]
[Annotator "TA"]
[PlyCount "82"]
[EventDate "2022.05.08"]
[EventType "swiss"]
[EventCountry "AZE"]
[SourceTitle "playchess.com"]
[Source "ChessBase"]
[SourceQuality "1"]
[TimeControl "5400+30"]

{[%evp 16,82,20,14,10,8,16,0,0,0,0,0,0,-8,-4,-11,-11,-12,-25,-48,-22,-24,-24,-24,-17,-16,-27,-65,-41,-62,-58,-55,-66,-63,-49,-69,-45,-37,-53,-52,-50,-45,-47,-43,-51,-105,-100,-424,-424,-560,-558,-679,-679,-689,-678,-714,-707,-707,-707,-707,-707,-706,-705,-850,-839,-837,-832,-780,-771]} 1. e4 {[%emt 0:00:02]} c5 {[%emt 0:00:15]} 2. Nf3 {[%emt 0:00:05]} d6 {[%emt 0:00:04]} 3. Bb5+ {[%emt 0:00:06]} Bd7 {[%emt 0:00:22]} 4. Bxd7+ {[%emt 0:00:06]} Nxd7 {[%emt 0:00:09]} 5. O-O {[%emt 0:00:04]} Ngf6 {[%emt 0:00:21]} 6. Qe2 {[%emt 0:00:06]} e6 {[%emt 0:00:20]} 7. c3 {[%emt 0:00:05]} Be7 {[%emt 0:00:36]} 8. d4 {[%emt 0:00:06]} O-O {[%emt 0:00:22]} 9. Rd1 {[%emt 0:01:04]} cxd4 {[%emt 0:01:47] B52: Sicilian: Moscow Variation with 3...Bd7.} 10. cxd4 {[%emt 0:00:08]} b5 {[%emt 0:00:14]} 11. Nbd2 {[%emt 0:05:02] 11.e5 is the modern continuation.} Qb6 {[%emt 0:00:57] The position is equal.} 12. Nf1 {[%emt 0:05:40]} Rfc8 {[%emt 0:01:05] [#]} 13. Bg5 $146 {[%emt 0:01:19]} ({Predecessor:} 13. Bf4 a6 14. Ng3 Rc7 15. d5 exd5 16. exd5 Bf8 17. Nd4 Re8 18. Qf3 Ne5 19. Bxe5 {½-½ (19) Areshchenko,A (2670)-Mchedlishvili,M (2584) Terme Catez 2022}) 13... h6 {[%emt 0:03:24]} 14. Bh4 {[%emt 0:00:39]} Bf8 {[%emt 0:02:58]} 15. Bxf6 {[%emt 0:12:44]} Nxf6 {[%emt 0:00:27]} 16. d5 {[%emt 0:00:05]} e5 {[%emt 0:09:05]} 17. Rac1 {[%emt 0:00:45]} Qa6 {[%emt 0:10:31]} 18. a3 {[%emt 0:04:37]} g6 {[%emt 0:02:22]} 19. Ne1 {[%emt 0:13:58]} Qa4 {[%emt 0:08:36]} 20. f3 {[%emt 0:07:27]} h5 {[%emt 0:01:16]} 21. Nd3 {[%emt 0:06:25]} a5 {[%emt 0:02:57]} 22. Rc6 {[%emt 0:09:46]} Rxc6 {[%emt 0:08:41]} 23. dxc6 {[%emt 0:00:01]} Rc8 {[%emt 0:02:40]} 24. Rc1 {[%emt 0:00:05]} Bh6 {[%emt 0:07:48] Inhibits Qe3.} 25. Rc3 {[%emt 0:00:14]} b4 {[%emt 0:14:35]} 26. Qc2 {[%emt 0:01:42]} Qb5 {[%emt 0:00:15]} 27. axb4 {[%emt 0:01:46]} axb4 {[%emt 0:00:11]} 28. Rc4 {[%emt 0:00:02]} b3 {[%emt 0:01:25]} 29. Qc3 {[%emt 0:01:15]} d5 $36 {[%emt 0:10:30][%mdl 2048] Black has good play.} 30. Rc5 {[%emt 0:04:44] [#]} (30. Rb4 $1 $15 Qxc6 31. Qxc6 Rxc6 32. exd5 Nxd5 33. Rb8+ Bf8 34. g3) 30... Qb6 $1 $17 {[%emt 0:00:17] Black is more active.} 31. exd5 $2 {[%emt 0:00:29][%mdl 8192] Loses the game.} (31. Qa5 $17 {is more resistant.} Qxa5 32. Rxa5 dxe4 33. fxe4) 31... Bf8 $19 {[%emt 0:05:00][%mdl 64] aiming for ...Nxd5. Pin. Black is clearly winning.} 32. Ne3 {[%emt 0:00:05] [#]} e4 $1 {[%emt 0:00:13][%cal Be5e4,Be4d3,Bd3d2][%mdl 32]} 33. Qa5 {[%emt 0:03:39]} Qxa5 {[%emt 0:01:03]} 34. Rxa5 {[%emt 0:00:01]} exd3 {[%emt 0:00:01]} 35. Kf2 {[%emt 0:10:13]} d2 {[%emt 0:00:20] Hoping for ...Re8.} 36. Rb5 {[%emt 0:02:38]} Re8 {[%emt 0:01:36][%cal Oe8e3] White must now prevent ...Rxe3!} 37. Ke2 {[%emt 0:01:13]} Bh6 {[%emt 0:01:38]} 38. Kxd2 {[%emt 0:01:00]} Rxe3 {[%emt 0:00:43]} 39. Kd1 {[%emt 0:00:05]} Rd3+ {[%emt 0:00:16]} 40. Ke2 {[%emt 0:00:01]} Rd2+ {[%emt 0:00:10]} 41. Ke1 {[%emt 0:00:06]} Nxd5 {[%emt 0:00:05] Weighted Error Value: White=0.40/Black=0.02 (flawless)} 0-1

[Event "Nakhchivan Open 2022"]
[Site "Nakhchivan"]
[Date "2022.05.12"]
[Round "6.3"]
[White "Rasulov, Vugar"]
[Black "Hasanov, Rashad"]
[Result "1-0"]
[ECO "E11"]
[WhiteElo "2445"]
[BlackElo "2142"]
[Annotator "TA"]
[PlyCount "59"]
[EventDate "2022.05.08"]
[EventType "swiss"]
[EventCountry "AZE"]
[SourceTitle "playchess.com"]
[Source "ChessBase"]
[SourceQuality "1"]
[TimeControl "5400+30"]

{[%evp 14,59,28,21,22,12,29,24,29,23,20,22,25,20,30,13,46,44,42,20,53,31,66,67,177,161,135,154,260,267,297,280,427,429,411,414,544,545,588,588,575,581,579,571,1036,930,29990,487]} 1. d4 {[%emt 0:00:05]} Nf6 {[%emt 0:00:04]} 2. c4 {[%emt 0:00:13]} e6 {[%emt 0:00:04]} 3. Nf3 {[%emt 0:00:23]} Bb4+ {[%emt 0:00:09]} 4. Nbd2 {[%emt 0:04:11]} b6 {[%emt 0:01:15]} 5. a3 {[%emt 0:02:04]} Bxd2+ {[%emt 0:00:13]} 6. Qxd2 {[%emt 0:00:07]} Bb7 {[%emt 0:00:19]} 7. e3 {[%emt 0:02:31]} O-O {[%emt 0:00:34]} 8. Be2 {[%emt 0:00:13]} d5 {[%emt 0:06:26] E14: Queen's Indian: Classical Variation (4 e3).} 9. b3 {[%emt 0:04:59]} Nbd7 {[%emt 0:06:22]} 10. O-O {[%emt 0:00:33]} dxc4 {[%emt 0:04:06] White has an edge.} 11. bxc4 {[%emt 0:01:56]} c5 {[%emt 0:06:07]} 12. Bb2 {[%emt 0:00:37]} cxd4 {[%emt 0:05:01]} 13. exd4 {[%emt 0:00:38]} Rc8 {[%emt 0:01:25]} 14. Rac1 {[%emt 0:00:32]} Qc7 {[%emt 0:06:11] [#]} 15. h3 $146 {[%emt 0:06:44]} ({Predecessor:} 15. Qe3 Ng4 16. Qg5 Bxf3 17. g3 Bxe2 18. d5 f6 {0-1 (18) Aditya,M (2487)-Martinez Alcantara,J (2598) Chess.com INT 2022}) 15... Rfd8 {[%emt 0:02:03]} 16. Qe3 {[%emt 0:00:18]} Qb8 {[%emt 0:02:49]} 17. Rfd1 {[%emt 0:02:47]} a6 {[%emt 0:02:07]} 18. Ne5 {[%emt 0:07:10]} Ba8 {[%emt 0:07:37] Inhibits d5.} (18... h6 $14) 19. Nxd7 {[%emt 0:06:13]} Nxd7 {[%emt 0:02:21]} 20. d5 {[%emt 0:00:15][%cal Bd4d5,Bd5d6,Bd6d7][%mdl 32]} e5 {[%emt 0:06:05]} (20... Qd6 $16 21. a4 exd5) 21. Bg4 $18 {[%emt 0:00:19] [#] Black must now prevent Bxd7.} f6 {[%emt 0:01:09]} 22. a4 {[%emt 0:00:22]} Rc7 {[%emt 0:03:11]} (22... a5 {is a better defense.} 23. Ba3 Qc7) 23. a5 {[%emt 0:05:24]} bxa5 {[%emt 0:08:56]} 24. Ba3 {[%emt 0:00:12] A strong pair of Bishops.} Nb6 {[%emt 0:01:26]} 25. d6 {[%emt 0:02:34]} Rc6 {[%emt 0:05:13]} 26. Rb1 {[%emt 0:01:05]} Qb7 {[%emt 0:00:48][%cal Oc6d6]} 27. Bf3 {[%emt 0:06:19]} Nxc4 {[%emt 0:04:54]} 28. Qd3 {[%emt 0:00:57]} ({Less strong is} 28. Rxb7 Nxe3 29. Re7 Nxd1 $16) 28... Qc8 {[%emt 0:03:05]} 29. d7 {[%emt 0:00:57]} Qc7 {[%emt 0:00:24]} 30. Be7 {[%emt 0:00:06] Weighted Error Value: White=0.05 (flawless) /Black=0.65} (30. Qd5+ $142 Kh8 {[#]} 31. Qf7 $1 Nd6 32. Rxd6 Rc1+ 33. Rxc1 h6 34. Rxc7 Bb7 35. Bxb7) 1-0

[Event "Nakhchivan Open 2022"]
[Site "Nakhchivan"]
[Date "2022.05.12"]
[Round "6.4"]
[White "Hasanzade, Toghrul"]
[Black "Haznedaroglu, Kivanc"]
[Result "0-1"]
[ECO "B47"]
[WhiteElo "2279"]
[BlackElo "2425"]
[Annotator "TA"]
[PlyCount "54"]
[EventDate "2022.05.08"]
[EventType "swiss"]
[EventCountry "AZE"]
[SourceTitle "playchess.com"]
[Source "ChessBase"]
[SourceQuality "1"]
[TimeControl "5400+30"]

{[%evp 19,54,20,35,43,50,41,33,52,38,-40,10,-81,-92,-85,-74,-91,-72,-65,-66,-83,-48,-75,-72,-87,-80,-92,-97,-222,-249,-822,-822,-812,-808,-29984,-29983,-29989,-29990]} 1. e4 {[%emt 0:00:08]} c5 {[%emt 0:00:10]} 2. Nf3 {[%emt 0:00:08]} e6 {[%emt 0:00:09]} 3. d4 {[%emt 0:00:06]} cxd4 {[%emt 0:00:06]} 4. Nxd4 {[%emt 0:00:04]} Nc6 {[%emt 0:00:35]} 5. Nc3 {[%emt 0:00:12]} Qc7 {[%emt 0:00:16]} 6. f4 {[%emt 0:00:31]} a6 {[%emt 0:06:28]} 7. Nxc6 {[%emt 0:00:39]} Qxc6 {[%emt 0:00:44]} 8. Bd3 {[%emt 0:00:08]} b5 {[%emt 0:03:51]} 9. Qe2 {[%emt 0:00:09]} Bb7 {[%emt 0:00:52]} 10. Bd2 {[%emt 0:00:58]} Bc5 {[%emt 0:04:05]} 11. O-O-O {[%emt 0:00:15] B47: Sicilian: Taimanov: 5 Nc3 Qc7 6 f4, 6 g3 and 6 Be2.} b4 {[%emt 0:05:01] [#]} 12. Nd5 {[%emt 0:00:10]} Ne7 {[%emt 0:00:01]} 13. Nxb4 {[%emt 0:06:33] White is slightly better.} Qb6 {[%emt 0:00:08]} 14. a3 {[%emt 0:02:03] [#]} (14. c3 $14) 14... O-O $146 {[%emt 0:01:15]} ({Black should play} 14... a5 $15 15. Na2 Bc6) ({Predecessor:} 14... Rb8 15. Bc3 O-O 16. Nxa6 Bxa6 17. Bxa6 d5 18. b4 Be3+ 19. Kb2 dxe4 20. Bc4 Rfc8 {0-1 (29) Afraoui,A (2120)-Milliet,S (2401) Europe Echecs INT 2020}) 15. Rhf1 {[%emt 0:01:21]} (15. Rhe1 $1 $11 {remains equal.}) 15... a5 {[%emt 0:05:29]} 16. Na2 {[%emt 0:00:45]} Rab8 $36 {[%emt 0:00:01][%cal Ob7d5][%mdl 2048] Keeping White busy. Black is more active.} ({But not} 16... Bd4 17. Nc3 $14) 17. Bc3 {[%emt 0:24:14]} d5 {[%emt 0:00:54]} 18. Be5 {[%emt 0:28:07]} dxe4 {[%emt 0:04:59]} 19. Bb5 {[%emt 0:03:28]} Nd5 {[%emt 0:19:58] White must now prevent ...Rbc8.} 20. c4 {[%emt 0:05:57]} Ne3 {[%emt 0:27:18]} 21. Bxb8 {[%emt 0:01:15]} Rxb8 {[%emt 0:00:59][%cal Bf8b8,Bb8d8,Bd8d2][%mdl 32]} 22. Nc3 {[%emt 0:00:22]} Nxd1 {[%emt 0:00:31]} 23. Nxd1 {[%emt 0:06:37] [#]} (23. Rxd1 $17 Bd4 24. g3) 23... Rd8 $1 $19 {[%emt 0:00:37] Threatens to win with ...e3.} 24. g3 $2 {[%emt 0:03:45]} (24. Re1) 24... e3 {[%emt 0:00:50] aiming for ...Rd2.} 25. Nc3 {[%emt 0:01:41]} Rd2 {[%emt 0:00:42]} 26. Qh5 {[%emt 0:00:23]} Qd6 {[%emt 0:09:22]} 27. Qe5 {[%emt 0:13:13]} Qd3 {[%emt 0:00:44] Black took control after the opening.  Weighted Error Value: White=0.70/Black=0.08 (flawless)} 0-1